Cogmind - Beta 11.1 @@@ ROGUE MODE // 2022.05.01 @ 17:04:24 Player: Olga Result: Self-destructed Performance ------------- Evolutions (1) 500 Regions Visited (2) 400 Robots Destroyed (1) 5 Value Destroyed (10) 10 Prototype IDs (0) 0 Alien Tech Used (0) 0 Bonus (200) 200 TOTAL SCORE: 1115 Bonus ------- Pacifist 200 Cogmind --------- Core Integrity 182/400 Matter 260/300 Energy 100/100 System Corruption 0% Temperature Cool (0) Movement Flying (40) Location -9/Materials Parts ------- > --- POWER (1) -------- (None) > --- PROPULSION (2) --- Flight Unit > --- UTILITY (4) ------ (None) > --- WEAPON (2) ------- Hammer > --- INVENTORY (5) ---- Light Treads Light Treads Compact Wheel Peak State ------------ > --- POWER ------------ (None) > --- PROPULSION ------- Flight Unit VTOL Module > --- UTILITY ---------- (None) > --- WEAPON ----------- Small Laser Hammer > --- INVENTORY -------- Light Treads Light Treads Compact Wheel [Rating: 5] Favorites ----------- Power None Propulsion Flight Unit Flight Unit Flight Unit Utility Structural Scanner Device Structural Scanner Weapon Light Assault Rifle Energy Gun Small Laser Ballistic Gun Light Assault Rifle Impact Weapon Hammer Build | -11 -10 -9 ------- Run | Scr Mat Mat Slots Evolved 2 | . . 2 Power . | . . . Propulsion . | . . . Utility 2 | . . 2 Weapon . | . . . Parts Attached 7 | 1 1 5 Power . | . . . Engine . | . . . Core . | . . . Reactor . | . . . Propulsion 3 | . . 3 Treads . | . . . Leg . | . . . Wheel . | . . . Hover . | . . . Flight 3 | . . 3 Utility 1 | . 1 . Device 1 | . 1 . Storage . | . . . Processor . | . . . Hackware . | . . . Protection . | . . . Artifact . | . . . Weapon 3 | 1 . 2 Energy Gun 1 | . . 1 Energy Cannon . | . . . Ballistic Gun 1 | 1 . . Ballistic Cannon . | . . . Launcher . | . . . Special Weapon . | . . . Impact Weapon 1 | . . 1 Slashing Weapon . | . . . Piercing Weapon . | . . . Special Melee Weapon . | . . . Unidentified Prototypes . | . . . Parts Lost 4 | . 1 3 Power . | . . . Propulsion 1 | . . 1 Utility 1 | . 1 . Weapon 2 | . . 2 Highest Loss Streak 2 | . 1 2 To Critical Strikes . | . . . Average Slot Usage (%) 15 | . 14 15 Flight 3 | . . 5 Energy Gun 3 | . . 5 Ballistic Gun 5 | . 14 1 Impact Weapon 1 | . . 2 Naked Turns 36 | . . 36 Heaviest Build 3 | 1 2 3 Greatest Support 8 | 3 3 8 Greatest Overweight (x) . | . . . Average Overweight (x) . | . . . Largest Inventory Capacity 5 | 5 5 5 Average Capacity 5 | 5 5 5 Most Carried 5 | 5 5 5 Average Carried 4 | 5 5 4 Final Capacity 5 | 5 5 5 Final Carried 5 | 5 5 3 Class Distribution -------------------- 100% | Mutant Dominant Class ---------------- Mutant | -10/Materials Mutant | -9/Materials Resources | -11 -10 -9 ----------- Run | Scr Mat Mat Matter Collected 208 | 200 8 . Remotely . | . . . Salvage Created 17 | . . 17 Parts 2 | . . 2 Haulers Intercepted . | . . . Recyclers Shooed . | . . . Parts Field Recycled . | . . . Retrieved Matter . | . . . Parts Self-Destructed . | . . . Prevented . | . . . Kills | -11 -10 -9 ------- Run | Scr Mat Mat Combat Hostiles Destroyed 1 | . . 1 Guns 1 | . . 1 Classes Destroyed 1 | . . 1 Swarmer 1 | . . 1 Best Kill Streak 1 | . . 1 Combat Bots Only 1 | . . 1 Max Kills in Single Turn 1 | . . 1 Gunslinging . | . . . Exploded . | . . . Melee . | . . . Uniques/NPCs Destroyed . | . . . Combat | -11 -10 -9 -------- Run | Scr Mat Mat Damage Taken 532 | . 144 388 Core 308 | . 90 218 Absorbed by Shields . | . . . Core Remaining (%) 82 | 100 64 . Volleys Fired 10 | . . 10 Largest 1 | . . 1 Hottest 40 | . . 40 Shots Fired 10 | . . 10 Gun 10 | . . 10 Cannon . | . . . Launcher . | . . . Special . | . . . Kinetic . | . . . Thermal 10 | . . 10 Explosive . | . . . Electromagnetic . | . . . Robot Hit Streak 1 | . . 1 Robot Miss Streak 9 | . . 9 Penetration Max . | . . . Secondary Targets . | . . . Shots Hit Robots 1 | . . 1 Core Hits 1 | . . 1 Critical Kills . | . . . Critical Parts Destroyed . | . . . Critical Strikes . | . . . Melee Attacks . | . . . Impact . | . . . Slashing . | . . . Piercing . | . . . Sneak Attacks . | . . . Combat Hostiles . | . . . Follow-up Attacks . | . . . Damage Inflicted 19 | . 9 10 Guns 10 | . . 10 Cannons . | . . . Explosions . | . . . Melee . | . . . Ramming 9 | . 9 . Kinetic . | . . . Thermal 10 | . . 10 Explosive . | . . . Electromagnetic . | . . . Impact . | . . . Slashing . | . . . Piercing . | . . . Highest Corruption . | . . . Average Corruption . | . . . Corruption Purged . | . . . Corruption Blocked . | . . . Overload Shots . | . . . Overflow Damage . | . . . Projectiles . | . . . Explosions . | . . . Melee . | . . . Knockbacks . | . . . Impact . | . . . Kinetic . | . . . Secondary . | . . . Self-Inflicted Damage 4 | . 4 . Shots . | . . . Rammed 1 | . 1 . Targets Rammed 1 | . 1 . Kicked . | . . . Crushed . | . . . Highest Temperature 1 | . . 1 Average Temperature 1 | . . 1 Received Heat Transfer 204 | . 75 129 Siege Activations . | . . . Robots Corrupted . | . . . Combat Hostiles . | . . . Parts Fried . | . . . Impact Corruptions . | . . . Robots Melted . | . . . Combat Hostiles . | . . . Parts Melted . | . . . Heat Transferred 25 | . . 25 Parts Sabotaged . | . . . Parts Stolen . | . . . Parts Stripped . | . . . Power Chain Reactions . | . . . Missiles Intercepted . | . . . Alert | -11 -10 -9 ------- Run | Scr Mat Mat Peak Influence 183 | . 23 183 Initial 5 | . . 5 Average 67 | . 8 90 Maximum Alert Level . | . . . Low Security (%) 100 | 100 100 100 Level 1 . | . . . Level 2 . | . . . Level 3 . | . . . Level 4 . | . . . Level 5 . | . . . High Security . | . . . Max Security . | . . . Squads Dispatched 4 | . 1 3 Investigation 3 | . . 3 Extermination . | . . . Reinforcement 1 | . 1 . Assault . | . . . Garrison . | . . . Intercept . | . . . Searches Triggered . | . . . Construction Impeded . | . . . Haulers Reinforced . | . . . Active Scanning Responses . | . . . Cargo Convoy Interrupts . | . . . Stealth | -11 -10 -9 --------- Run | Scr Mat Mat Distress Signals . | . . . Communications Jammed . | . . . Distress Signals . | . . . Times Spotted 21 | . 5 16 Peak Tracking Total 9 | . 5 9 Tactical Retreats 4 | . . 4 Traps | -11 -10 -9 ------- Run | Scr Mat Mat Traps Triggered . | . . . Indirectly . | . . . Trap Hack Attempts . | . . . Triggered . | . . . Disarmed . | . . . Reprogrammed . | . . . Reused . | . . . Traps Extracted . | . . . Installed . | . . . Triggered . | . . . Machines | -11 -10 -9 ---------- Run | Scr Mat Mat Machines Disabled . | . . . Max in Single Turn . | . . . Machines Sabotaged . | . . . Garrisons Compromised . | . . . Overloaded Fab Kills . | . . . Hacking | -11 -10 -9 --------- Run | Scr Mat Mat Machines Accessed 6 | . 2 4 Terminals 6 | . 2 4 Fabricators . | . . . Repair Stations . | . . . Recycling Units . | . . . Scanalyzers . | . . . Garrison Access . | . . . Total Hacks 20 | . 5 15 Successful 8 | . 4 4 Failed 12 | . 1 11 Catastrophic 7 | . . 7 Database Lockouts . | . . . Manual 20 | . 5 15 Terminals 20 | . 5 15 Fabricators . | . . . Repair Stations . | . . . Recycling Units . | . . . Scanalyzers . | . . . Garrison Access . | . . . Terminal Hacks 3 | . 2 1 Level Access Points 1 | . 1 . Terminal Index 2 | . 1 1 Fabricator Hacks . | . . . Repair Station Hacks . | . . . Recycling Unit Hacks . | . . . Scanalyzer . | . . . Garrison Access Hacks . | . . . Unauthorized Hacks 5 | . 2 3 Terminals 5 | . 2 3 Botnet 5 | . 2 3 Fabricators . | . . . Repair Stations . | . . . Recycling Units . | . . . Scanalyzers . | . . . Garrison Access . | . . . Data Cores Recovered . | . . . Used . | . . . Hacking Detections 4 | . . 4 Full Trace Events 3 | . . 3 Feedback Events . | . . . Feedback Blocked . | . . . Robot Schematics Acquired . | . . . Robots Built . | . . . Authchips . | . . . Time . | . . . Total Robot Build Rating . | . . . Part Schematics Acquired . | . . . Parts Built . | . . . Authchips . | . . . Time . | . . . Total Part Build Rating . | . . . Parts Repaired . | . . . Time . | . . . Parts Recycled . | . . . Recycled Matter . | . . . Retrieved Matter . | . . . Retrieved Components . | . . . Parts Scanalyzed . | . . . Part Schematics Acquired . | . . . Parts Damaged . | . . . Bothacking | -11 -10 -9 ------------ Run | Scr Mat Mat Used RIF Installer . | . . . Robots Hacked . | . . . Non-combat . | . . . Combat . | . . . Robot Hacks Applied . | . . . Relay Couplers Released . | . . . Fabnet Peak Effective % . | . . . Robots Rewired . | . . . Allies Hacked . | . . . Hacks Repelled . | . . . Allies | -11 -10 -9 -------- Run | Scr Mat Mat Total Allies . | . . . Largest Group . | . . . Highest-Rated Group . | . . . Highest-Rated Ally . | . . . Total Orders . | . . . Ally Attacks . | . . . Total Damage . | . . . Kills . | . . . Allies Corrupted . | . . . Allies Melted . | . . . Intel | -11 -10 -9 ------- Run | Scr Mat Mat Robot Analysis Total . | . . . Derelict Logs Recovered . | . . . Drone Launches . | . . . Drone Recoveries . | . . . Exploration | -11 -10 -9 ------------- Run | Scr Mat Mat Turns Passed 178 | 3 47 128 Spaces Moved 321 | 3 88 230 Core 205 | 3 88 114 Treads . | . . . Legs . | . . . Wheels . | . . . Hover . | . . . Flight 116 | . . 116 Fastest Speed 34 | 50 50 34 Average Speed 45 | 50 50 43 Slowest Speed 50 | 50 50 50 Overloaded Moves . | . . . Propulsion Burnouts . | . . . Robots Hopped 6 | . . 6 Cave-ins Triggered . | . . . Exploration Rate (%) 19 | 2 25 32 Regions Visited 2 Branch Regions . Pre-discovered Areas . | . . . Known Exits Taken 1 | . 1 . Unknown Exits Taken 1 | 1 . . Scrap Searched . | . . . Spaces Dug . | . . . Terrain Destroyed . | . . . Melee . | . . . Projectile . | . . . AOE . | . . . Terrain Rammed . | . . . Walls Destroyed . | . . . Machines Disabled . | . . . Actions | -11 -10 -9 --------- Run | Scr Mat Mat Total 333 | 3 89 241 Wait . | . . . Move 308 | 2 87 219 Hop 5 | . . 5 Pick Up . | . . . Fast Attach 5 | 1 1 3 Attach 2 | . . 2 Detach 1 | . . 1 Swap . | . . . Drop 1 | . . 1 Fire 10 | . . 10 Melee . | . . . Ram 1 | . 1 . Kick . | . . . Crush . | . . . Escape Stasis . | . . . Rewire . | . . . Trap . | . . . Miscellaneous . | . . . Route ------- -11/Scrapyard -10/Materials (discovered 3 exits: *Mat x3) -9/Materials History --------- Turn | Location | Event 1 | -11/Scrapyard | Released all parts (6) 1 | -11/Scrapyard | Discovered new exit (range 2) 4 | -11/Scrapyard | Entered Materials 33 | -10/Materials | Identified exit to Materials 51 | -10/Materials | Entered another Materials area 51 | -9/Materials | Evolved 2 slots: Utility x2 164 | -9/Materials | Core integrity fell below 50% 179 | -9/Materials | Self-destructed Last Messages --------------- Trojan loaded successfully. Testing... Terminal linked with 2 systems. Awaiting botnet instructions. 00103_ ALERT: Suspicious activity at Terminal M002. Dispatching Investigation squad. 00103_ Terminal unresponsive. 00107_ Acquired VTOL Module. 00108_ Dropped Ion Engine. 00129_ S-10 Pest destroyed. 00132_ Acquired Flight Unit. 00135_ R-06 Scavenger collects Lgt. Ion Engine. 00143_ T-07 Excavator is excavating. 00148_ Acquired Hammer. 00157_ VTOL Module destroyed. 00163_ Sml. Laser destroyed. 00175_ K-01 Serf collects debris. 00179_ Connecting with Terminal... 00179_ ALERT: Suspicious activity at Terminal M006. Dispatching Investigation squad. Map ----- +----------------------------------------------------+ | ???????Y """?# #??????????????? | | ???????" ??# #??????????????? | | ???????? ??# ##### #????????? | | ????????##???# #????????? | | ?????##########+###### #????????? | | ?????# #????????????? | | ?????# #????????????? | | ?????# #????????????? | | ?????# #????????????? | | ?????# #????????????? | | ?????# #????????????? | | ?????########+######??? ????????? | | ?????###### #??????? #???????? | | ????# ####### #???????? | | ????# #### [[ #???????? | | ?????????# [[ #???????? | | ?????????# ##??????? | | ?????????# #??????? | | ?????????# #??????? | | ?????????# +??????? | | ?????????# ] #??????? | | ?????????# """ #??????? | | ???######## """ ##??????? | | ???# # """ #???????? | | ???# % + """ ] #???????? | | ???# @ # """ ????????? | | ???# "T" # ?????????? | | ???# """ # ??????????? | | ???# # """ !?????????? | | ???#+#+#### """ ????????? | | ??????????# """ ????????? | | ??????????# """ ????????? | | ??????????? """?? ?????????? | | ??????????? ?????? ?????????? | | ??????????? ?????????????????? | | ??????????? ????????????????? | | ??????????? #?????????????????? | | ??????????? #?????????????????? | | ??????????? ??????????????????? | | ????????????????????????????????? | | ????????????????????????????????? | | ????????????????????????????????? | | ????????????????????????????????? | | ????????????????????????????????? | | ????????????????????????????????? | | ????????????????????????????????? | | ????????????????????????????????? | | | | | | | +----------------------------------------------------+ Best States ------------- Heat Dissipation 28 Energy Generation 5 Energy Capacity 100 Matter Stores 300 Matter Capacity 300 Sight Range 16 Terrain Scan Density 10 Evasion (%) 63 Item Schematics ----------------- None Robot Schematics ------------------ None Fabricated ------------ Nothing Alien Tech Used ----------------- None Achievements -------------- None Challenges ------------ None Game ------ Seed CryofiberHeavySpear Manual? 0 Play Time 00:07:48 Cumulative 142.8 hours Start 2022.05.01 @ 16:58:11 End 2022.05.01 @ 17:04:24 Sessions 1 Manual Loads 0 Difficulty Rogue Special Mode None Game No. 206 Rogue 205 Adventurer 0 Explorer 1 Win Type - Total 5 Types 5/0/0/0/0/0/0/0/0 Lore% 59 Gallery% 61 Achievement% 50 Wizard Run 0 Options --------- ASCII 1 Keyboard 0 Movement Vi Keybinds 0 Fullscreen 1 Font 18/SmallcapsGlow Map View 76x50 Tactical HUD 1 Map Filters NONE Filters NONE Steam 1 RUN: 79a693e5-0c44-4720-ae90-3f7829ddd947